fUSD/lending_fUSD_20250716
["ID","MTS","AMOUNT","RATE_DAILY","PERIOD"]
[372410398,1752633071540,-177.001933,0.00022054,7]
[372410399,1752633071549,-177.001933,0.00022054,7]
[372410400,1752633071560,-177.001938,0.00022054,7]
[372410401,1752633071572,-491.95,0.00022054,2]
[372410402,1752633071582,-460.0,0.00022054,2]
[372410403,1752633071591,-460.0,0.00022054,2]
[372410404,1752633071601,-460.0,0.00022054,2]
[372410405,1752633071610,-566.66,0.00022054,2]
[372410406,1752633071620,-460.0,0.00022054,2]
[372410407,1752633071630,-460.0,0.00022054,2]
[372410408,1752633071640,-460.0,0.00022054,2]
[372410409,1752633071650,-460.0,0.00022054,2]
[372410410,1752633071660,-460.0,0.00022054,2]
[372410411,1752633071670,-1021.63,0.00022054,2]
[372410412,1752633071680,-808.79,0.00022054,2]
[372410413,1752633071690,-571.03,0.00022054,2]
[372410414,1752633071699,-460.0,0.00022054,2]
[372410415,1752633071708,-463.54386585,0.00022054,2]
[372410416,1752633071718,-460.0,0.00022054,2]
[372410417,1752633071727,-460.0,0.00022054,2]
[372410418,1752633071737,-460.0,0.00022054,2]
[372410419,1752633071746,-151.0,0.00022054,7]
[372410420,1752633071756,-151.0,0.00022054,7]
[372410421,1752633071765,-151.0,0.00022054,7]
[372410422,1752633071774,-460.0,0.00022054,2]
[372410423,1752633071784,-151.0,0.00022054,7]
[372410424,1752633071793,-465.61578846,0.00022054,2]
[372410425,1752633071802,-460.0,0.00022054,2]
[372410426,1752633071812,-460.0,0.00022054,2]
[372410427,1752633071822,-460.0,0.00022054,2]
[372410428,1752633071831,-460.0,0.00022054,2]
[372410429,1752633071840,-460.0,0.00022054,2]
[372410430,1752633071850,-460.0,0.00022054,2]
[372410431,1752633071859,-1000.0,0.00022054,2]
[372410432,1752633071869,-460.0,0.00022054,2]
[372410433,1752633071879,-460.0,0.00022054,2]
[372410434,1752633071888,-460.0,0.00022054,2]
[372410435,1752633071897,-491.19,0.00022054,2]
[372410436,1752633071906,-460.95805348,0.00022054,2]
[372410437,1752633071915,-460.0,0.00022054,2]
[372410438,1752633071924,-628.0,0.00022054,2]
[372410439,1752633071934,-1164.85,0.00022054,2]
[372410440,1752633071944,-241.396834,0.00022054,7]
[372410441,1752633071953,-848.41,0.00022054,2]
[372410442,1752633071962,-179.950999,0.00022054,7]
[372410443,1752633071972,-179.950999,0.00022054,7]
[372410444,1752633071982,-179.950999,0.00022054,7]
[372410445,1752633071992,-179.95099,0.00022054,7]
[372410446,1752633072002,-460.0,0.00022054,2]
[372410447,1752633072013,-155.316,0.00022054,7]
[372410448,1752633072023,-460.0,0.00022054,2]
[372410449,1752633072036,-460.0,0.00022054,2]
[372410450,1752633072046,-460.0,0.00022054,2]
[372410451,1752633072056,-503.90124771,0.00022054,2]
[372410452,1752633072070,-460.0,0.00022054,2]
[372410453,1752633072080,-460.0,0.00022054,2]
[372410454,1752633072090,-960.78,0.00022054,2]
[372410455,1752633072099,-460.0,0.00022054,2]
[372410456,1752633072108,-920.75,0.00022054,2]
[372410457,1752633072118,-460.0,0.00022054,2]
[372410458,1752633072128,-343.03299485,0.00022054,2]
[372410459,1752633072137,-583.85,0.00022054,2]
[372410460,1752633072147,-151.0,0.00022054,7]
[372410461,1752633072156,-460.0,0.00022054,2]
[372410462,1752633072166,-151.0,0.00022054,7]
[372410463,1752633072175,-460.0,0.00022054,2]
[372410464,1752633072185,-577.76,0.00022054,2]
[372410465,1752633072195,-460.0,0.00022054,2]
[372410466,1752633072205,-392.68090092,0.00022054,2]
[372410467,1752633072215,-460.0,0.00022054,2]
[372410468,1752633072224,-167.050915,0.00022054,2]
[372410469,1752633072234,-540.0,0.00022054,2]
[372410470,1752633072244,-460.0,0.00022054,2]
[372410471,1752633072253,-460.0,0.00022054,2]
[372410472,1752633072263,-460.0,0.00022054,2]
[372410473,1752633072273,-460.0,0.00022054,2]
[372410474,1752633072284,-237.64378677,0.00022054,2]
[372410475,1752633072294,-405.01,0.00022054,2]
[372410476,1752633072303,-562.6,0.00022054,2]
[372410477,1752633072317,-460.0,0.00022054,2]
[372410478,1752633072327,-462.00485349,0.00022054,2]
[372410479,1752633072336,-543.5,0.00022054,2]
[372410480,1752633072346,-270.62328876,0.00022054,2]
[372410481,1752633072355,-460.0,0.00022054,2]
[372410482,1752633072365,-460.0,0.00022054,2]
[372410483,1752633072374,-1687.098977,0.00022054,2]
[372410484,1752633072383,-460.0,0.00022054,2]
[372410485,1752633072394,-2007.390005,0.00022054,2]
[372410486,1752633072407,-460.0,0.00022054,2]
[372410487,1752633072423,-430.03940108,0.00022054,2]
[372410488,1752633072433,-2908.7928,0.00022054,2]
[372410489,1752633072444,-1227.99,0.00022054,2]
[372410490,1752633072454,-597.27,0.00022054,2]
[372410491,1752633072463,-858.08,0.00022054,2]
[372410492,1752633072482,-460.0,0.00022054,2]
[372410493,1752633072492,-460.0,0.00022054,2]
[372410494,1752633072504,-460.41,0.00022054,2]
[372410495,1752633072514,-508.41,0.00022054,2]
[372410496,1752633072524,-461.45034173,0.00022054,2]
[372410497,1752633072533,-460.0,0.00022054,2]
[372410498,1752633072543,-151.0,0.00022054,7]
[372410499,1752633072552,-151.0,0.00022054,7]
[372410500,1752633072561,-477.24,0.00022054,2]
[372410501,1752633072571,-460.0,0.00022054,2]
[372410502,1752633072580,-151.0,0.00022054,7]
[372410503,1752633072590,-151.0,0.00022054,7]
[372410504,1752633072599,-460.0,0.00022054,2]
[372410505,1752633072608,-464.72435657,0.00022054,2]
[372410506,1752633072617,-460.0,0.00022054,2]
[372410507,1752633072627,-998.99,0.00022054,2]
[372410508,1752633072636,-673.187052,0.00022054,7]
[372410509,1752633072646,-944.28,0.00022054,2]
[372410510,1752633072655,-673.187052,0.00022054,7]
[372410511,1752633072664,-673.187052,0.00022054,7]
[372410512,1752633072673,-673.18706,0.00022054,7]
[372410513,1752633072682,-460.0,0.00022054,2]
[372410514,1752633072691,-302.54774229,0.00022054,2]
[372410515,1752633072701,-460.0,0.00022054,2]
[372410516,1752633072710,-793.63,0.00022054,2]
[372410517,1752633072815,-460.0,0.00022054,2]
[372410518,1752633072827,-460.0,0.00022054,2]
[372410519,1752633072836,-1299.24,0.00022054,2]
[372410520,1752633072845,-460.0,0.00022054,2]
[372410521,1752633072854,-460.0,0.00022054,2]
[372410522,1752633072864,-460.0,0.00022054,2]
[372410523,1752633072874,-460.0,0.00022054,2]
[372410524,1752633072884,-536.55228092,0.00022054,2]
[372410525,1752633072894,-460.0,0.00022054,2]
[372410526,1752633072903,-460.0,0.00022054,2]
[372410527,1752633072912,-460.0,0.00022054,2]
[372410528,1752633072921,-460.0,0.00022054,2]
[372410529,1752633072932,-460.0,0.00022054,2]
[372410530,1752633072942,-596.99,0.00022054,2]
[372410531,1752633072952,-466.17,0.00022054,2]
[372410532,1752633072961,-460.0,0.00022054,2]
[372410533,1752633072971,-709.02,0.00022054,2]
[372410534,1752633072980,-1768.28,0.00022054,2]
[372410535,1752633072995,-460.0,0.00022054,2]
[372410536,1752633073007,-1768.28,0.00022054,2]
[372410537,1752633073016,-460.0,0.00022054,2]
[372410538,1752633073026,-460.0,0.00022054,2]
[372410539,1752633073035,-460.0,0.00022054,2]
[372410540,1752633073045,-460.0,0.00022054,2]
[372410541,1752633073054,-762.72,0.00022054,2]
[372410542,1752633073063,-460.0,0.00022054,2]
[372410543,1752633073072,-460.0,0.00022054,2]
[372410544,1752633073081,-460.0,0.00022054,2]
[372410545,1752633073090,-460.0,0.00022054,2]
[372410546,1752633073099,-460.0,0.00022054,2]
[372410547,1752633073109,-460.0,0.00022054,2]
[372410548,1752633073118,-460.0,0.00022054,2]
[372410549,1752633073127,-213.94605078,0.00022054,2]
[372410550,1752633073137,-1025.63,0.00022054,2]
[372410551,1752633073146,-460.0,0.00022054,2]
[372410552,1752633073155,-460.0,0.00022054,2]
[372410553,1752633073164,-692.95,0.00022054,2]
[372410554,1752633073174,-1047.03,0.00022054,2]
[372410555,1752633073183,-462.27236232,0.00022054,2]
[372410556,1752633073194,-644.83,0.00022054,2]
[372410557,1752633073204,-261.36222209,0.00022054,2]
[372410558,1752633073213,-1442.3,0.00022054,2]
[372410559,1752633073222,-462.47978554,0.00022054,2]
[372410560,1752633073231,-460.0,0.00022054,2]
[372410561,1752633073241,-658.41,0.00022054,2]
[372410562,1752633073250,-460.0,0.00022054,2]
[372410563,1752633073261,-460.0,0.00022054,2]
[372410564,1752633073270,-460.0,0.00022054,2]
[372410565,1752633073279,-460.0,0.00022054,2]
[372410566,1752633073289,-489.2,0.00022054,2]
[372410567,1752633073299,-802.28,0.00022054,2]
[372410568,1752633073308,-460.0,0.00022054,2]
[372410569,1752633073317,-803.65,0.00022054,2]
[372410570,1752633073326,-460.0,0.00022054,2]
[372410571,1752633073336,-621.26,0.00022054,2]
[372410572,1752633073345,-1338.78,0.00022054,2]
[372410573,1752633073355,-460.0,0.00022054,2]
[372410574,1752633073364,-989.4,0.00022054,2]
[372410575,1752633073373,-460.0,0.00022054,2]
[372410576,1752633073382,-724.05,0.00022054,2]
[372410577,1752633073391,-535.78669368,0.00022054,2]
[372410578,1752633073403,-460.0,0.00022054,2]
[372410579,1752633073412,-888.08,0.00022054,2]
[372410580,1752633073421,-460.0,0.00022054,2]
[372410581,1752633073431,-460.0,0.00022054,2]
[372410582,1752633073440,-1426.37,0.00022054,2]
[372410583,1752633073450,-464.28123554,0.00022054,2]
[372410584,1752633073459,-941.2,0.00022054,2]
[372410585,1752633073469,-460.0,0.00022054,2]
[372410586,1752633073478,-460.0,0.00022054,2]
[372410587,1752633073487,-460.0,0.00022054,2]
[372410588,1752633073499,-460.0,0.00022054,2]
[372410589,1752633073509,-570.56,0.00022054,2]
[372410590,1752633073519,-541.43,0.00022054,2]
[372410591,1752633073528,-462.36796185,0.00022054,2]
[372410592,1752633073538,-460.0,0.00022054,2]
[372410593,1752633073547,-817.43,0.00022054,2]
[372410594,1752633073556,-460.0,0.00022054,2]
[372410595,1752633073565,-460.0,0.00022054,2]
[372410596,1752633073574,-460.0,0.00022054,2]
[372410597,1752633073584,-460.0,0.00022054,2]
[372410598,1752633073593,-460.0,0.00022054,2]
[372410599,1752633073603,-659.73,0.00022054,2]
[372410600,1752633073612,-460.0,0.00022054,2]
[372410601,1752633073621,-499.41,0.00022054,2]
[372410602,1752633073630,-460.0,0.00022054,2]
[372410603,1752633073639,-612.58,0.00022054,2]
[372410604,1752633073648,-914.21,0.00022054,2]
[372410605,1752633073657,-151.0,0.00022054,7]
[372410606,1752633073667,-151.0,0.00022054,7]
[372410607,1752633073677,-460.0,0.00022054,2]
[372410608,1752633073686,-460.0,0.00022054,2]
[372410609,1752633073695,-460.0,0.00022054,2]
[372410610,1752633073704,-411.73068748,0.00022054,2]
[372410611,1752633073713,-460.0,0.00022054,2]
[372410612,1752633073722,-256.34481136,0.00022054,2]
[372410613,1752633073732,-1695.7,0.00022054,2]
[372410614,1752633073741,-460.0,0.00022054,2]
[372410615,1752633073750,-460.0,0.00022054,2]
[372410616,1752633073761,-460.0,0.00022054,2]
[372410617,1752633073770,-461.42462784,0.00022054,2]
[372410618,1752633073780,-1093.84,0.00022054,2]
[372410619,1752633073789,-460.0,0.00022054,2]
[372410620,1752633073799,-460.0,0.00022054,2]
[372410621,1752633073808,-460.0,0.00022054,2]
[372410622,1752633073817,-460.0,0.00022054,2]
[372410623,1752633073827,-496.40444924,0.00022054,2]
[372410624,1752633073836,-460.0,0.00022054,2]
[372410625,1752633073845,-1200.09,0.00022054,2]
[372410626,1752633073855,-1825.55,0.00022054,2]
[372410627,1752633073864,-411.27936849,0.00022054,2]
[372410628,1752633073875,-460.0,0.00022054,2]
[372410629,1752633073884,-460.0,0.00022054,2]
[372410630,1752633073893,-460.0,0.00022054,2]
[372410631,1752633073903,-518.40450555,0.00022054,2]
[372410632,1752633073913,-1183.48,0.00022054,2]
[372410633,1752633073922,-461.00633438,0.00022054,2]
[372410634,1752633073932,-918.74,0.00022054,2]
[372410635,1752633073942,-628.2,0.00022054,2]
[372410636,1752633073951,-460.0,0.00022054,2]
[372410637,1752633073961,-1321.27,0.00022054,2]
[372410638,1752633073971,-460.0,0.00022054,2]
[372410639,1752633073980,-460.0,0.00022054,2]
[372410640,1752633073989,-460.0,0.00022054,2]
[372410641,1752633073999,-494.67,0.00022054,2]
[372410642,1752633074012,-574.55724694,0.00022054,2]
[372410643,1752633074025,-460.0,0.00022054,2]
[372410644,1752633074033,-414.70965486,0.00022054,2]
[372410645,1752633074043,-460.0,0.00022054,2]
[372410646,1752633074052,-460.0,0.00022054,2]
[372410647,1752633074062,-460.0,0.00022054,2]
[372410648,1752633074071,-670.34,0.00022054,2]
[372410649,1752633074081,-464.51680727,0.00022054,2]
[372410650,1752633074091,-458.43455839,0.00022054,2]
[372410651,1752633074100,-354.88448984,0.00022054,2]
[372410652,1752633074110,-1200.33,0.00022054,2]
[372410653,1752633074119,-460.0,0.00022054,2]
[372410654,1752633074128,-460.0,0.00022054,2]
[372410655,1752633074138,-460.0,0.00022054,2]
[372410656,1752633074147,-460.0,0.00022054,2]
[372410657,1752633074157,-460.0,0.00022054,2]
[372410658,1752633074166,-463.25939081,0.00022054,2]
[372410659,1752633074176,-171.75,0.00022054,2]
[372410660,1752633074185,-165.286456,0.00022054,7]
[372410661,1752633074195,-460.0,0.00022054,2]
[372410662,1752633074205,-460.0,0.00022054,2]
[372410663,1752633074215,-165.286456,0.00022054,7]
[372410664,1752633074226,-460.0,0.00022054,2]
[372410665,1752633074240,-460.0,0.00022054,2]
[372410666,1752633074255,-460.0,0.00022054,2]
[372410667,1752633074267,-1153.72,0.00022054,2]
[372410668,1752633074278,-460.0,0.00022054,2]
[372410669,1752633074289,-460.0,0.00022054,2]
[372410670,1752633074298,-461.00133864,0.00022054,2]
[372410671,1752633074308,-165.286456,0.00022054,7]
[372410672,1752633074322,-460.0,0.00022054,2]
[372410673,1752633074339,-460.0,0.00022054,2]
[372410674,1752633074348,-165.286454,0.00022054,7]
[372410675,1752633074357,-753.3,0.00022054,2]
[372410676,1752633074367,-462.4035856,0.00022054,2]
[372410677,1752633074376,-460.0,0.00022054,2]
[372410678,1752633074385,-1097.54,0.00022054,2]
[372410679,1752633074395,-462.80671132,0.00022054,2]
[372410680,1752633074408,-680.81,0.00022054,2]
[372410681,1752633074418,-460.0,0.00022054,2]
[372410682,1752633074427,-226.204737,0.00022054,7]
[372410683,1752633074436,-226.204737,0.00022054,7]
[372410684,1752633074446,-790.76,0.00022054,2]
[372410685,1752633074455,-683.37,0.00022054,2]
[372410686,1752633074465,-570.52562665,0.00022054,2]
[372410687,1752633074474,-226.204737,0.00022054,7]
[372410688,1752633074485,-226.204734,0.00022054,7]
[372410689,1752633074494,-460.0,0.00022054,2]
[372410690,1752633074504,-460.0,0.00022054,2]
[372410691,1752633074516,-531.23,0.00022054,2]
[372410692,1752633074526,-847.32,0.00022054,2]
[372410693,1752633074542,-1459.12,0.00022054,2]
[372410694,1752633074552,-460.0,0.00022054,2]
[372410695,1752633074562,-460.0,0.00022054,2]
[372410696,1752633074572,-460.0,0.00022054,2]
[372410697,1752633074581,-460.0,0.00022054,2]
[372410698,1752633074591,-558.38,0.00022054,2]
[372410699,1752633074600,-460.0,0.00022054,2]
[372410700,1752633074609,-460.98318091,0.00022054,2]
[372410701,1752633074618,-470.14,0.00022054,2]
[372410702,1752633074627,-460.0,0.00022054,2]
[372410703,1752633074638,-1352.04,0.00022054,2]
[372410704,1752633074648,-460.0,0.00022054,2]
[372410705,1752633074657,-462.7719112,0.00022054,2]
[372410706,1752633074666,-2592.67,0.00022054,2]
[372410707,1752633074675,-533.28,0.00022054,2]
[372410708,1752633074684,-460.0,0.00022054,2]
[372410709,1752633074694,-631.23,0.00022054,2]
[372410710,1752633074703,-460.0,0.00022054,2]
[372410711,1752633074714,-460.0,0.00022054,2]
[372410712,1752633074723,-460.0,0.00022054,2]
[372410713,1752633074733,-460.0,0.00022054,2]
[372410714,1752633074742,-460.0,0.00022054,2]
[372410715,1752633074751,-483.81,0.00022054,2]
[372410716,1752633074761,-1493.66,0.00022054,2]
[372410717,1752633074771,-825.22,0.00022054,2]
[372410718,1752633074780,-460.0,0.00022054,2]
[372410719,1752633074789,-1381.07,0.00022054,2]
[372410720,1752633074799,-507.71,0.00022054,2]
[372410721,1752633074808,-561.13,0.00022054,2]
[372410722,1752633074817,-611.83,0.00022054,2]
[372410723,1752633074827,-460.0,0.00022054,2]
[372410724,1752633074836,-531.89093634,0.00022054,2]
[372410725,1752633074846,-460.0,0.00022054,2]
[372410726,1752633074855,-601.86,0.00022054,2]
[372410727,1752633074864,-502.48,0.00022054,2]
[372410728,1752633074875,-1658.55,0.00022054,2]
[372410729,1752633074884,-875.99,0.00022054,2]
[372410730,1752633074893,-460.0,0.00022054,2]
[372410731,1752633074903,-1366.8,0.00022054,2]
[372410732,1752633074912,-1658.08,0.00022054,2]
[372410733,1752633074921,-1442.77,0.00022054,2]
[372410734,1752633074930,-460.0,0.00022054,2]
[372410735,1752633074939,-769.04,0.00022054,2]
[372410736,1752633074949,-460.0,0.00022054,2]
[372410737,1752633074958,-460.0,0.00022054,2]
[372410738,1752633074967,-463.02209047,0.00022054,2]
[372410739,1752633074976,-460.0,0.00022054,2]
[372410740,1752633074991,-460.0,0.00022054,2]
[372410741,1752633075002,-535.04,0.00022054,2]
[372410742,1752633075012,-460.0,0.00022054,2]
[372410743,1752633075022,-556.87,0.00022054,2]
[372410744,1752633075031,-462.80200449,0.00022054,2]
[372410745,1752633075042,-460.0,0.00022054,2]
[372410746,1752633075052,-460.0,0.00022054,2]
[372410747,1752633075062,-460.0,0.00022054,2]
[372410748,1752633075072,-1635.82,0.00022054,2]
[372410749,1752633075083,-460.0,0.00022054,2]
[372410750,1752633075093,-921.31,0.00022054,2]
[372410751,1752633075102,-460.0,0.00022054,2]
[372410752,1752633075112,-460.0,0.00022054,2]
[372410753,1752633075122,-460.0,0.00022054,2]
[372410754,1752633075132,-470.87956027,0.00022054,2]
[372410755,1752633075141,-508.68293681,0.00022054,2]
[372410756,1752633075151,-528.41,0.00022054,2]
[372410757,1752633075161,-478.96,0.00022054,2]
[372410758,1752633075170,-465.59316935,0.00022054,2]
[372410759,1752633075181,-460.0,0.00022054,2]
[372410760,1752633075190,-460.0,0.00022054,2]
[372410761,1752633075200,-1157.99,0.00022054,2]
[372410762,1752633075210,-460.0,0.00022054,2]
[372410763,1752633075220,-460.0,0.00022054,2]
[372410764,1752633075230,-460.0,0.00022054,2]
[372410765,1752633075239,-460.0,0.00022054,2]
[372410766,1752633075249,-460.0,0.00022054,2]
[372410767,1752633075258,-3058.87,0.00022054,2]
[372410768,1752633075267,-463.01584958,0.00022054,2]
[372410769,1752633075277,-464.02800147,0.00022054,2]
[372410770,1752633075286,-460.0,0.00022054,2]
[372410771,1752633075295,-460.98407075,0.00022054,2]
[372410772,1752633075304,-460.0,0.00022054,2]
[372410773,1752633075314,-460.0,0.00022054,2]
[372410774,1752633075323,-460.0,0.00022054,2]
[372410775,1752633075332,-460.0,0.00022054,2]
[372410776,1752633075342,-998.52,0.00022054,2]
[372410777,1752633075351,-464.65607354,0.00022054,2]
[372410778,1752633075360,-460.0,0.00022054,2]
[372410779,1752633075369,-460.15397105,0.00022054,2]
[372410780,1752633075378,-582.93,0.00022054,2]
[372410781,1752633075387,-579.3,0.00022054,2]
[372410782,1752633075396,-460.0,0.00022054,2]
[372410783,1752633075409,-460.0,0.00022054,2]
[372410784,1752633075418,-460.0,0.00022054,2]
[372410785,1752633075428,-462.83083467,0.00022054,2]
[372410786,1752633075437,-460.0,0.00022054,2]
[372410787,1752633075448,-460.0,0.00022054,2]
[372410788,1752633075458,-460.0,0.00022054,2]
[372410789,1752633075467,-1357.78,0.00022054,2]
[372410790,1752633075476,-848.54,0.00022054,2]
[372410791,1752633075487,-460.0,0.00022054,2]
[372410792,1752633075498,-460.0,0.00022054,2]
[372410793,1752633075508,-460.0,0.00022054,2]
[372410794,1752633075518,-595.32,0.00022054,2]
[372410795,1752633075527,-1036.02,0.00022054,2]
[372410796,1752633075536,-460.0,0.00022054,2]
[372410797,1752633075545,-460.0,0.00022054,2]
[372410798,1752633075554,-460.0,0.00022054,2]
[372410799,1752633075563,-460.0,0.00022054,2]
[372410800,1752633075573,-2085.08,0.00022054,2]
[372410801,1752633075582,-460.0,0.00022054,2]
[372410802,1752633075591,-2820.52,0.00022054,2]
[372410803,1752633075600,-491.01,0.00022054,2]
[372410804,1752633075609,-1876.76,0.00022054,2]
[372410805,1752633075619,-955.92,0.00022054,2]
[372410806,1752633075628,-1564.59,0.00022054,2]
[372410807,1752633075638,-641.65,0.00022054,2]
[372410808,1752633075648,-462.34735879,0.00022054,2]
[372410809,1752633075657,-460.0,0.00022054,2]
[372410810,1752633075666,-1180.96,0.00022054,2]
[372410811,1752633075675,-460.0,0.00022054,2]
[372410812,1752633075684,-835.244334,0.00022054,7]
[372410813,1752633075693,-460.0,0.00022054,2]
[372410814,1752633075702,-526.3220976,0.00022054,2]
[372410815,1752633075711,-460.0,0.00022054,2]
[372410816,1752633075720,-460.0,0.00022054,2]
[372410817,1752633075730,-835.244327,0.00022054,7]
[372410818,1752633075739,-2761.51,0.00022054,2]
[372410819,1752633075748,-503.97,0.00022054,2]
[372410820,1752633075759,-460.0,0.00022054,2]
[372410821,1752633075769,-696.76,0.00022054,2]
[372410822,1752633075778,-460.0,0.00022054,2]
[372410823,1752633075787,-460.0,0.00022054,2]
[372410824,1752633075796,-2482.13,0.00022054,2]
[372410825,1752633075807,-835.92,0.00022054,2]
[372410826,1752633075817,-460.0,0.00022054,2]
[372410827,1752633075828,-470.96901778,0.00022054,2]
[372410828,1752633075838,-460.0,0.00022054,2]
[372410829,1752633075847,-460.0,0.00022054,2]
[372410830,1752633075857,-373.79350706,0.00022054,2]
[372410831,1752633075867,-460.0,0.00022054,2]
[372410832,1752633075876,-460.0,0.00022054,2]
[372410833,1752633075888,-531.46,0.00022054,2]
[372410834,1752633075897,-460.0,0.00022054,2]
[372410835,1752633075909,-1382.38,0.00022054,2]
[372410836,1752633075919,-460.0,0.00022054,2]
[372410837,1752633075928,-489.44,0.00022054,2]
[372410838,1752633075938,-3384.2,0.00022054,2]
[372410839,1752633075947,-460.0,0.00022054,2]
[372410840,1752633075956,-460.0,0.00022054,2]
[372410841,1752633075965,-2081.02,0.00022054,2]
[372410842,1752633075975,-460.0,0.00022054,2]
[372410843,1752633075984,-460.0,0.00022054,2]
[372410844,1752633075997,-460.0,0.00022054,2]
[372410845,1752633076009,-464.11,0.00022054,2]
[372410846,1752633076018,-460.0,0.00022054,2]
[372410847,1752633076028,-460.0,0.00022054,2]
[372410848,1752633076037,-641.76,0.00022054,5]
[372410849,1752633076047,-460.0,0.00022054,2]
[372410850,1752633076056,-460.0,0.00022054,2]
[372410851,1752633076065,-460.0,0.00022054,2]
[372410852,1752633076074,-531.95,0.00022054,2]
[372410853,1752633076084,-460.0,0.00022054,2]
[372410854,1752633076093,-460.0,0.00022054,2]
[372410855,1752633076103,-460.0,0.00022054,2]
[372410856,1752633076112,-460.0,0.00022054,2]
[372410857,1752633076122,-460.0,0.00022054,2]
[372410858,1752633076131,-460.0,0.00022054,2]
[372410859,1752633076141,-3533.81,0.00022054,2]
[372410860,1752633076150,-460.0,0.00022054,2]
[372410861,1752633076160,-460.0,0.00022054,2]
[372410862,1752633076170,-460.0,0.00022054,2]
[372410863,1752633076181,-460.0,0.00022054,2]
[372410864,1752633076192,-628.12,0.00022054,2]
[372410865,1752633076203,-957.34,0.00022054,2]
[372410866,1752633076213,-3697.76,0.00022054,2]
[372410867,1752633076223,-556.63238136,0.00022054,2]
[372410868,1752633076232,-460.0,0.00022054,2]
[372410869,1752633076241,-496.5,0.00022054,2]
[372410870,1752633076251,-460.0,0.00022054,2]
[372410871,1752633076260,-1646.34,0.00022054,2]
[372410872,1752633076269,-460.0,0.00022054,2]
[372410873,1752633076279,-833.55,0.00022054,2]
[372410874,1752633076288,-705.0,0.00022054,2]
[372410875,1752633076298,-460.0,0.00022054,2]
[372410876,1752633076309,-460.0,0.00022054,2]
[372410877,1752633076319,-968.65,0.00022054,2]
[372410878,1752633076329,-2460.35,0.00022054,2]
[372410879,1752633076341,-460.0,0.00022054,2]
[372410880,1752633076352,-460.0,0.00022054,2]
[372410881,1752633076364,-674.7,0.00022054,2]
[372410882,1752633076374,-460.0,0.00022054,2]
[372410883,1752633076384,-1449.58,0.00022054,2]
[372410884,1752633076395,-2500.84,0.00022054,2]
[372410885,1752633076409,-526.3,0.00022054,2]
[372410886,1752633076418,-469.95,0.00022054,2]
[372410887,1752633076427,-1041.82,0.00022054,2]
[372410888,1752633076437,-460.0,0.00022054,2]
[372410889,1752633076447,-460.0,0.00022054,2]
[372410890,1752633076456,-692.09,0.00022054,2]
[372410891,1752633076466,-460.0,0.00022054,2]
[372410892,1752633076476,-460.0,0.00022054,2]
[372410893,1752633076486,-1040.21,0.00022054,2]
[372410894,1752633076495,-460.0,0.00022054,2]
[372410895,1752633076504,-471.56,0.00022054,2]
[372410896,1752633076515,-832.29,0.00022054,2]
[372410897,1752633076525,-460.0,0.00022054,2]